bitfinex-derivatives/quotes_BTCF0:USTF0_20250724
["timestamp","ask_amount","ask_price","bid_price","bid_amount"]
[1753371231227,1.17074339,118830.0,118820.0,0.7319887]
[1753371231431,1.17054339,118830.0,118820.0,0.7319887]
[1753371231635,1.21691339,118830.0,118820.0,0.7319887]
[1753371232234,1.17014339,118830.0,118820.0,0.7319887]
[1753371232733,1.17014339,118830.0,118820.0,0.5636767]
[1753371233432,1.00192799,118830.0,118820.0,1.14901372]
[1753371233636,0.39672799,118830.0,118820.0,1.39901372]
[1753371233826,0.3608,118840.0,118830.0,0.2974354]
[1753371234024,1.1796012,118840.0,118830.0,0.71446042]
[1753371234226,1.1796012,118840.0,118830.0,0.88276442]
[1753371234436,1.0114,118840.0,118830.0,0.88276442]
[1753371234631,1.0114,118840.0,118830.0,1.13276442]
[1753371234831,1.1826012,118840.0,118830.0,1.13276442]
[1753371235136,1.5626012,118840.0,118830.0,1.13276442]
[1753371235327,1.6109712,118840.0,118830.0,0.88276442]
[1753371235734,1.06277,118840.0,118830.0,0.88276442]
[1753371235931,1.2309712,118840.0,118830.0,0.4657394]
[1753371236132,1.2309712,118840.0,118830.0,0.88276442]
[1753371236631,1.5409712,118840.0,118830.0,0.88276442]
[1753371237032,1.5409712,118840.0,118830.0,0.4657394]
[1753371237237,1.3238312,118840.0,118830.0,0.4657394]
[1753371237433,1.06277,118840.0,118830.0,0.4657394]
[1753371237638,1.0164,118840.0,118830.0,0.88276442]
[1753371237933,1.3238312,118840.0,118830.0,0.88276442]
[1753371238137,1.3226712,118840.0,118830.0,0.88276442]
[1753371238337,1.3226712,118840.0,118830.0,0.4657394]
[1753371238537,1.3224712,118840.0,118830.0,0.4657394]
[1753371239037,1.2296112,118840.0,118830.0,0.4657394]
[1753371239435,1.01504,118840.0,118830.0,0.88276442]
[1753371240340,1.5396112,118840.0,118830.0,0.4657394]
[1753371240534,1.6324712,118840.0,118830.0,0.4657394]
[1753371240737,2.11812622,118840.0,118830.0,0.2974354]
[1753371240934,2.11812622,118840.0,118830.0,0.2896854]
[1753371241331,1.7011012,118840.0,118830.0,0.2896854]
[1753371241937,1.7011012,118840.0,118830.0,0.2974354]
[1753371242238,1.7511012,118840.0,118830.0,0.2974354]
[1753371242840,1.0332312,118840.0,118830.0,0.2974354]
[1753371243031,1.6844712,118840.0,118830.0,0.2974354]
[1753371243227,0.41217,118840.0,118830.0,0.88276442]
[1753371243430,1.01704,118840.0,118830.0,0.88276442]
[1753371243636,1.01724,118840.0,118830.0,1.49276442]
[1753371243837,1.01724,118840.0,118830.0,1.13276442]
[1753371244031,0.3608,118850.0,118840.0,0.1682012]
[1753371244231,0.91630019,118850.0,118840.0,0.70185622]
[1753371244543,0.24451019,118850.0,118840.0,1.75739243]
[1753371244836,0.69741,118870.0,118860.0,0.1681729]
[1753371245033,0.8655688,118870.0,118860.0,0.58519792]
[1753371245232,0.8655688,118870.0,118860.0,0.3364289]
[1753371245834,1.60694812,118870.0,118860.0,0.1681729]
[1753371246037,1.1478805,118870.0,118860.0,0.1681729]
[1753371246335,0.5577405,118870.0,118860.0,0.1681729]
[1753371246540,1.1657788,118870.0,118860.0,0.1681729]
[1753371246736,1.1656588,118870.0,118860.0,0.1681729]
[1753371246937,0.69617,118870.0,118860.0,0.75345392]
[1753371247136,0.64996,118870.0,118860.0,0.75345392]
[1753371247536,0.69633,118870.0,118860.0,0.75345392]
[1753371247736,0.04637,118870.0,118860.0,0.35723251]
[1753371247936,0.69737,118870.0,118860.0,0.35723251]
[1753371248135,0.651,118870.0,118860.0,1.02425753]
[1753371248338,0.8655288,118870.0,118860.0,0.35723251]
[1753371248640,0.8655288,118870.0,118860.0,0.77425753]
[1753371248933,1.3370188,118870.0,118860.0,0.18897651]
[1753371249329,1.3370188,118870.0,118860.0,0.03323361]
[1753371249531,1.3370188,118870.0,118860.0,0.20140651]
[1753371250135,1.0270188,118870.0,118860.0,0.22128651]
[1753371250340,1.3770188,118870.0,118860.0,0.22128651]
[1753371250737,2.03855401,118870.0,118860.0,0.02080361]
[1753371250935,2.03855401,118870.0,118860.0,0.18897651]
[1753371251236,1.62152899,118870.0,118860.0,0.18897651]
[1753371251431,1.62152899,118870.0,118860.0,0.20140651]
[1753371252841,2.18252401,118870.0,118860.0,0.01443]
[1753371253040,2.18252401,118870.0,118840.0,0.27079869]
[1753371253041,0.1681871,118850.0,118840.0,0.27079869]
[1753371253245,2.14889231,118850.0,118840.0,0.27079869]
[1753371253551,1.73186729,118850.0,118840.0,0.28322869]
[1753371254439,1.73186729,118850.0,118840.0,0.28622869]
[1753371254844,1.73186729,118850.0,118840.0,0.24417929]
[1753371255246,1.73186729,118850.0,118840.0,0.23174929]
[1753371255448,1.73186729,118850.0,118840.0,0.23374929]
[1753371256648,1.73014729,118850.0,118840.0,0.23374929]
[1753371257049,2.14717231,118850.0,118840.0,0.005]
[1753371257345,3.53313853,118850.0,118840.0,0.03515853]
[1753371257647,3.53313853,118850.0,118840.0,0.005]
[1753371258445,3.53313853,118850.0,118840.0,0.03515853]
[1753371259346,3.53313853,118850.0,118840.0,0.005]
[1753371263445,3.53313853,118850.0,118840.0,0.050335]
[1753371264244,3.53313853,118850.0,118840.0,0.000335]
[1753371264448,3.11611351,118850.0,118840.0,0.000335]
[1753371264650,3.53313853,118850.0,118840.0,0.000335]
[1753371266059,3.11611351,118850.0,118840.0,0.1685362]
[1753371266459,3.53313853,118850.0,118840.0,0.1685362]
[1753371266756,3.53313853,118850.0,118840.0,0.000335]
[1753371266952,3.53313853,118850.0,118840.0,0.1685362]
[1753371267153,3.53313853,118850.0,118840.0,0.000335]
[1753371267358,3.11611351,118850.0,118840.0,0.000335]
[1753371267558,3.53313853,118850.0,118840.0,0.000335]
[1753371269659,0.5275854,118830.0,118820.0,0.02885238]
[1753371269855,2.20516061,118830.0,118820.0,0.06030463]
[1753371270361,2.20516061,118830.0,118820.0,0.22853413]
[1753371270560,1.78813559,118830.0,118820.0,0.22853413]
[1753371271359,2.20516061,118830.0,118820.0,0.23453413]
[1753371271560,2.20516061,118830.0,118820.0,0.1742295]
[1753371272258,2.20516061,118830.0,118820.0,0.25358249]
[1753371273165,2.20516061,118830.0,118820.0,0.27896364]
[1753371273366,2.20516061,118830.0,118820.0,0.2599401]
[1753371273759,1.78813559,118830.0,118820.0,0.2599401]
[1753371274064,2.20516061,118830.0,118820.0,0.2599401]
[1753371274265,1.14209559,118830.0,118820.0,0.2599401]
[1753371274465,1.78597559,118830.0,118820.0,0.2599401]
[1753371275162,1.78621559,118830.0,118820.0,0.3041401]
[1753371275465,1.14209559,118830.0,118820.0,0.3041401]
[1753371275661,1.78609559,118830.0,118820.0,0.3041401]
[1753371276068,1.78613559,118830.0,118820.0,0.3041401]
[1753371276368,1.78597559,118830.0,118820.0,0.3041401]
[1753371277257,1.14209559,118830.0,118820.0,0.3041401]
[1753371277465,1.78525559,118830.0,118820.0,0.3041401]
[1753371278268,1.78525559,118830.0,118820.0,0.24381065]
[1753371278468,2.20228061,118830.0,118820.0,0.24381065]
[1753371278665,2.20228061,118830.0,118820.0,0.19961065]
[1753371279064,1.55912061,118830.0,118820.0,0.19961065]
[1753371279264,2.20208061,118830.0,118820.0,0.19961065]
[1753371279468,1.78505559,118830.0,118820.0,0.19961065]
[1753371280270,2.20208061,118830.0,118820.0,0.26002954]
[1753371280472,1.78505559,118830.0,118820.0,0.26002954]
[1753371281065,1.78505559,118830.0,118820.0,0.03138115]
[1753371281262,1.78505559,118830.0,118820.0,0.19961065]
[1753371281473,2.20208061,118830.0,118820.0,0.19961065]
[1753371281661,2.20208061,118830.0,118820.0,0.03138115]
[1753371282464,2.20208061,118830.0,118820.0,0.19961065]
[1753371283161,2.20208061,118830.0,118820.0,0.03138115]
[1753371283575,2.20208061,118830.0,118820.0,0.19961065]
[1753371284279,1.63914559,118830.0,118820.0,0.23972065]
[1753371284579,1.63914559,118830.0,118820.0,0.30013954]
[1753371284781,1.63914559,118830.0,118820.0,0.31563954]
[1753371285479,1.78206559,118830.0,118820.0,0.26002954]
[1753371285779,1.78182559,118830.0,118820.0,0.26002954]
[1753371285981,1.78166559,118830.0,118820.0,0.26002954]
[1753371286568,1.78166559,118830.0,118820.0,0.09180004]
[1753371286770,0.5323895,118820.0,118810.0,0.06647501]
[1753371286982,0.3126837,118810.0,118800.0,0.11918998]
[1753371287181,2.14493891,118810.0,118800.0,0.11918998]
[1753371287478,2.14493891,118810.0,118800.0,0.28744778]
[1753371287681,1.72791389,118810.0,118800.0,0.28744778]
[1753371288276,1.72751389,118810.0,118800.0,0.29044778]
[1753371288580,1.72751389,118810.0,118800.0,0.30013778]
[1753371288777,1.72751389,118810.0,118800.0,0.33055778]
[1753371289086,1.72751389,118810.0,118800.0,0.39628063]
[1753371289584,1.72751389,118810.0,118800.0,0.39328063]
[1753371289585,1.72851389,118810.0,118800.0,0.39328063]
[1753371289880,1.4840837,118810.0,118800.0,0.82580565]
[1753371290081,1.4840837,118810.0,118800.0,0.87442565]
[1753371290777,1.4840837,118810.0,118800.0,0.45740063]
[1753371290983,1.4840837,118810.0,118800.0,0.33380108]
[1753371291183,1.4836837,118810.0,118800.0,0.31830108]
[1753371291979,1.4836837,118810.0,118800.0,0.29943907]
[1753371293181,1.72819389,118810.0,118800.0,0.25932907]
[1753371293575,1.08791389,118810.0,118800.0,0.29943907]
[1753371293774,1.1661337,118810.0,118800.0,0.78058409]
[1753371293975,0.99789,118810.0,118800.0,0.85556364]
[1753371294278,1.3790837,118810.0,118800.0,0.43853862]
[1753371294479,1.3790837,118810.0,118800.0,0.78058409]
[1753371295181,1.3790837,118810.0,118800.0,0.31493907]
[1753371296178,1.3790837,118810.0,118800.0,0.38991862]
[1753371296379,1.3790837,118810.0,118800.0,0.85556364]
[1753371296882,1.3790837,118810.0,118800.0,0.78058409]
[1753371297185,1.3790837,118810.0,118800.0,0.85556364]
[1753371297978,1.3790837,118810.0,118800.0,0.78058409]
[1753371298284,1.3790837,118810.0,118800.0,0.7807153]
[1753371298979,1.3790837,118810.0,118800.0,0.36369028]
[1753371299175,1.3790837,118810.0,118800.0,0.37552359]
[1753371299376,1.62359389,118810.0,118800.0,0.15165579]
[1753371299580,1.62359389,118810.0,118800.0,0.31991359]
[1753371300079,1.62359389,118810.0,118800.0,0.15165579]
[1753371300290,1.62359389,118810.0,118800.0,0.31991359]
[1753371300783,1.62359389,118810.0,118800.0,0.25946028]
[1753371301183,1.62359389,118810.0,118800.0,0.16618203]
[1753371301384,1.62359389,118810.0,118800.0,0.25946028]
[1753371301586,1.62359389,118810.0,118800.0,0.33443983]
[1753371301981,1.76931389,118810.0,118800.0,0.78981485]
[1753371302180,1.5248037,118810.0,118800.0,0.85112485]
[1753371302588,1.5248037,118810.0,118800.0,0.43409983]
[1753371303091,1.5248037,118810.0,118800.0,0.38547983]
[1753371303782,1.5248037,118810.0,118800.0,0.78981485]
[1753371304179,1.5259637,118810.0,118800.0,0.78981485]
[1753371304379,1.5259637,118810.0,118800.0,0.33443983]
[1753371304588,1.77047389,118810.0,118800.0,0.33443983]
[1753371304790,1.77047389,118810.0,118800.0,0.16618203]
[1753371304990,1.77047389,118810.0,118800.0,0.33443983]
[1753371306191,1.12791389,118810.0,118800.0,0.3467517]
[1753371306486,1.12791389,118810.0,118800.0,0.76377672]
[1753371306793,1.35688,118810.0,118800.0,0.84892778]
[1753371307085,0.11777,118810.0,118800.0,1.4342968]
[1753371307285,0.71272,118810.0,118800.0,1.44880574]
[1753371307487,0.8109637,118810.0,118800.0,0.95680117]
[1753371307687,0.8109637,118810.0,118800.0,0.53977615]
[1753371307688,0.9598437,118810.0,118800.0,0.53977615]
[1753371307889,1.0306837,118810.0,118800.0,0.95680117]
[1753371308195,1.58519389,118810.0,118800.0,0.33225074]
[1753371308387,1.08791389,118810.0,118800.0,0.10351435]
[1753371308688,1.72931389,118810.0,118800.0,0.16402031]
[1753371308888,1.63087685,118810.0,118800.0,0.07916593]
[1753371309093,0.5324178,118800.0,118790.0,0.07497955]
[1753371309284,0.168272,118790.0,118780.0,0.01839584]
[1753371309593,2.20876721,118790.0,118780.0,0.09407766]
[1753371310389,2.20876721,118790.0,118780.0,0.11922368]
[1753371310584,2.20876721,118790.0,118780.0,0.185119]
[1753371310788,1.79174219,118790.0,118780.0,0.3534052]
[1753371311191,1.15058219,118790.0,118780.0,0.3534052]
[1753371311488,1.79150219,118790.0,118780.0,0.92742022]
[1753371311895,1.79150219,118790.0,118780.0,0.5123952]
[1753371312392,1.79150219,118790.0,118780.0,0.5143952]
[1753371312996,1.79150219,118790.0,118780.0,0.4433852]
[1753371313297,1.79150219,118790.0,118780.0,0.3574052]
[1753371313892,1.79150219,118790.0,118780.0,0.28172338]
[1753371314094,1.79150219,118790.0,118780.0,0.38669475]
[1753371314592,1.79050219,118790.0,118780.0,0.34930754]
[1753371314787,1.15058219,118790.0,118780.0,0.34930754]
[1753371314988,1.78978219,118790.0,118780.0,0.34930754]
[1753371316397,1.78978219,118790.0,118780.0,0.09504134]
[1753371316594,1.78978219,118790.0,118780.0,0.26332744]
[1753371316891,1.545272,118790.0,118780.0,0.68035246]
[1753371317095,1.545272,118790.0,118780.0,0.83734246]
[1753371317096,1.78946219,118790.0,118780.0,0.83734246]
[1753371317394,1.78946219,118790.0,118780.0,0.26332744]
[1753371317599,1.78946219,118790.0,118780.0,0.09504134]
[1753371319002,1.78946219,118790.0,118780.0,0.26332754]
[1753371319594,1.78946219,118790.0,118780.0,0.09504134]
[1753371319992,1.78946219,118790.0,118780.0,0.26332754]
[1753371320398,1.78946219,118790.0,118780.0,0.09504134]
[1753371320895,1.78946219,118790.0,118780.0,0.26332754]
[1753371321295,1.78946219,118790.0,118780.0,0.33898168]
[1753371323601,1.15058219,118790.0,118780.0,0.33898168]
[1753371323793,1.78726219,118790.0,118780.0,0.33898168]
[1753371324194,1.78726219,118790.0,118780.0,0.32383113]
[1753371331999,1.542752,118790.0,118780.0,0.26332754]
[1753371332201,1.15058219,118790.0,118780.0,0.26332754]
[1753371332504,1.73480219,118790.0,118780.0,0.68035256]
[1753371332700,1.73480219,118790.0,118780.0,0.74085615]
[1753371332906,1.73480219,118790.0,118780.0,0.34887754]
[1753371333303,1.73480219,118790.0,118780.0,0.70610503]
[1753371333506,1.73480219,118790.0,118780.0,0.62055503]
[1753371334003,1.10072219,118790.0,118780.0,0.26332754]
[1753371334202,0.7378,118790.0,118780.0,0.97499503]
[1753371334399,0.73404,118790.0,118780.0,0.97499503]
[1753371334798,0.03158112,118790.0,118780.0,1.39336303]
[1753371334999,0.03158112,118790.0,118780.0,1.83251767]
[1753371335204,0.01588889,118810.0,118800.0,0.53785496]
[1753371335399,0.64992889,118810.0,118800.0,1.25230994]
[1753371336106,0.64992889,118810.0,118800.0,1.20314994]
[1753371336402,0.63404,118810.0,118800.0,1.37149394]
[1753371336604,0.09492594,118830.0,118820.0,0.5226695]
[1753371336807,0.07033,118840.0,118830.0,0.5263754]
[1753371336808,0.3898438,118840.0,118830.0,0.5263754]
[1753371337007,1.36476139,118840.0,118830.0,0.88360289]
[1753371337208,1.41227139,118840.0,118830.0,0.94457862]
[1753371337709,1.3931538,118840.0,118830.0,0.94457862]
[1753371338800,1.4918038,118840.0,118830.0,0.94457862]
[1753371339202,1.4918038,118840.0,118830.0,0.4789354]
[1753371339403,1.4918038,118840.0,118830.0,0.89713862]
[1753371339602,1.4928038,118840.0,118830.0,0.4789354]
[1753371340709,1.4928038,118840.0,118830.0,0.94528862]
[1753371341609,1.4928038,118840.0,118830.0,0.5270854]
[1753371341806,1.4928038,118840.0,118830.0,0.4789354]
[1753371342409,1.4928038,118840.0,118830.0,0.94528862]
[1753371343205,1.4928038,118840.0,118830.0,0.2904554]
[1753371343409,1.4928038,118840.0,118820.0,0.174316]
[1753371343410,0.5377054,118830.0,118820.0,0.5501404]
[1753371343607,0.8477054,118830.0,118820.0,0.5501404]
[1753371344007,0.8477054,118830.0,118820.0,0.5982904]
[1753371344314,0.36949,118830.0,118820.0,1.01649362]
[1753371344512,0.30061,118830.0,118820.0,1.01749362]
[1753371344705,0.76279,118830.0,118820.0,1.01749362]
[1753371344906,0.22187,118840.0,118830.0,0.1682154]
[1753371345108,0.7844,118840.0,118830.0,0.93237862]
[1753371345412,0.6344,118840.0,118830.0,0.93237862]
[1753371345611,1.1730812,118840.0,118830.0,0.5141754]
[1753371346113,1.1740812,118840.0,118830.0,0.5141754]
[1753371346506,1.1740812,118840.0,118830.0,0.85266862]
[1753371347009,1.2429612,118840.0,118830.0,0.85266862]
[1753371347213,1.3473012,118840.0,118830.0,0.85266862]
[1753371348109,0.63588,118840.0,118830.0,1.02097262]
[1753371348308,0.2152605,118870.0,118860.0,0.2765529]
[1753371348309,0.4579619,118870.0,118860.0,0.2765529]
[1753371348514,1.07247209,118870.0,118860.0,0.4440529]
[1753371348710,1.72395209,118870.0,118860.0,0.4440529]
[1753371348910,1.72395209,118870.0,118860.0,0.3811929]
[1753371349104,1.72395209,118870.0,118860.0,0.1681729]
[1753371349711,1.72595209,118870.0,118860.0,0.1681729]
[1753371349910,1.72595209,118870.0,118860.0,0.2673929]
[1753371350119,1.72795209,118870.0,118860.0,0.2673929]
[1753371350508,1.55979019,118870.0,118860.0,0.44828109]
[1753371350810,0.90831019,118870.0,118860.0,0.86648431]
[1753371351117,1.31608,118870.0,118860.0,0.92934431]
[1753371351319,1.24816,118870.0,118860.0,0.51114109]
[1753371351513,0.6638,118870.0,118860.0,0.53261048]
[1753371351714,1.4840388,118870.0,118860.0,0.53261048]
[1753371352013,1.4840388,118870.0,118860.0,0.25673048]
[1753371352216,1.72854899,118870.0,118860.0,0.25673048]
[1753371352613,1.72854899,118870.0,118860.0,0.40147048]
[1753371352915,1.31588,118870.0,118860.0,0.53261048]
[1753371353117,1.31588,118870.0,118860.0,0.9508137]
[1753371353118,1.4849187,118870.0,118860.0,0.9508137]
[1753371353313,1.72942889,118870.0,118860.0,0.25673048]
[1753371353717,1.07646889,118870.0,118860.0,0.25673048]
[1753371353917,1.72974889,118870.0,118860.0,0.46975048]
[1753371354117,1.72974889,118870.0,118860.0,0.9508137]
[1753371354310,1.72974889,118870.0,118860.0,0.53261048]
[1753371354511,1.72974889,118870.0,118860.0,0.46975048]
[1753371354712,1.72974889,118870.0,118860.0,0.25673048]
[1753371355313,2.14795211,118870.0,118860.0,0.08855758]
[1753371355513,2.23203621,118870.0,118860.0,0.1681729]
[1753371355817,0.4579729,118860.0,118850.0,0.2708678]
[1753371356012,1.07248309,118860.0,118850.0,0.2708678]
[1753371356412,0.8279729,118860.0,118850.0,0.2708678]
[1753371356618,1.07248309,118860.0,118850.0,0.2708678]
[1753371356818,1.49068631,118860.0,118850.0,0.2708678]
[1753371357019,1.24717612,118860.0,118850.0,0.2708678]
[1753371357218,1.07348309,118860.0,118850.0,0.2708678]
[1753371358021,1.07448309,118860.0,118850.0,0.29232312]
[1753371359419,1.55975019,118860.0,118850.0,1.0552946]
[1753371359620,1.07448309,118860.0,118850.0,0.31916538]
[1753371360120,1.72796309,118860.0,118850.0,0.31916538]
[1753371360624,2.14616631,118860.0,118850.0,0.31916538]
[1753371360820,2.14616631,118860.0,118850.0,0.25851998]
[1753371361020,0.2898,118850.0,118830.0,0.35487019]
[1753371361222,1.77387461,118840.0,118830.0,0.25035686]
[1753371361427,2.09387461,118840.0,118830.0,0.18985327]
[1753371362016,2.09387461,118840.0,118830.0,0.25575927]
[1753371362726,2.09387461,118840.0,118830.0,0.25675927]
[1753371362927,2.09387461,118840.0,118830.0,0.25775927]
[1753371363127,2.09387461,118840.0,118830.0,0.08955317]
[1753371363325,2.21984684,118840.0,118830.0,0.15005676]
[1753371363528,0.4580154,118830.0,118820.0,0.1682267]
[1753371363726,1.08252559,118830.0,118820.0,0.1682267]
[1753371364029,1.62642673,118830.0,118820.0,0.1682267]
[1753371364830,1.75259373,118830.0,118820.0,0.07865414]
[1753371365129,1.33439051,118830.0,118820.0,0.31320354]
[1753371365326,1.75259373,118830.0,118820.0,0.31320354]
[1753371365728,1.75259373,118830.0,118820.0,0.25947827]
[1753371366529,1.76171373,118830.0,118820.0,0.26047827]
[1753371367334,1.76171373,118830.0,118820.0,0.0703199]
[1753371367528,0.2848237,118810.0,118800.0,0.1322761]
[1753371367734,2.15431711,118810.0,118800.0,0.3005238]
[1753371368030,1.90980692,118810.0,118800.0,0.04815]
[1753371368333,0.4580578,118800.0,118790.0,0.38306231]
[1753371368533,1.44077121,118800.0,118790.0,0.47367562]
[1753371368733,1.56658842,118800.0,118790.0,0.36803783]
[1753371369029,1.56658842,118800.0,118790.0,0.44350686]
[1753371369426,1.56658842,118800.0,118790.0,0.16295606]
[1753371370531,0.168272,118790.0,118780.0,0.02125984]
[1753371370727,0.168272,118790.0,118770.0,0.36296129]
[1753371370728,0.2878362,118780.0,118770.0,0.36296129]
[1753371371025,1.33054961,118780.0,118770.0,0.36296129]
[1753371371327,1.33054961,118780.0,118770.0,0.15259779]
[1753371371521,1.33054961,118780.0,118770.0,0.10563779]
[1753371371720,0.2878503,118770.0,118760.0,0.36298199]
[1753371371923,1.92216371,118770.0,118760.0,0.4300947]
[1753371372132,1.92216371,118770.0,118760.0,0.32445691]
[1753371372326,1.50396049,118770.0,118760.0,0.43009467]
[1753371372632,1.50368049,118770.0,118760.0,0.55437493]
[1753371372830,1.50368049,118770.0,118760.0,0.65345493]
[1753371373022,1.50368049,118770.0,118760.0,0.65645493]
[1753371373223,1.50332049,118770.0,118760.0,0.65645493]
[1753371373619,1.50332049,118770.0,118760.0,0.44607073]
[1753371374333,1.50332049,118770.0,118760.0,0.24469073]
[1753371374634,1.50332049,118770.0,118760.0,0.34699073]
[1753371374831,1.50332049,118770.0,118760.0,0.34999073]
[1753371375421,1.50332049,118770.0,118760.0,0.54889523]
[1753371375627,1.50332049,118770.0,118760.0,0.44907073]
[1753371375827,1.50332049,118770.0,118760.0,0.61238523]
[1753371376027,1.50332049,118770.0,118760.0,0.34277073]
[1753371376225,1.92152371,118770.0,118760.0,0.24369073]
[1753371376530,2.04763802,118770.0,118760.0,0.00102073]
[1753371377130,3.54763802,118770.0,118760.0,0.00102073]
[1753371377933,0.1683287,118750.0,118740.0,0.06543008]
[1753371378131,0.1683287,118750.0,118730.0,0.04706]
[1753371378132,0.1683429,118740.0,118730.0,0.04706]
[1753371378327,0.79285309,118740.0,118730.0,0.215417]
[1753371378528,0.79285309,118740.0,118730.0,0.36632813]
[1753371379337,0.79285309,118740.0,118730.0,0.28351154]
[1753371380233,0.79285309,118740.0,118730.0,0.38581154]
[1753371380635,0.79285309,118740.0,118730.0,0.38981154]
[1753371381128,0.79285309,118740.0,118730.0,0.38581154]
[1753371381328,0.79285309,118740.0,118730.0,0.38681154]
[1753371381623,0.06618805,118780.0,118730.0,0.38681154]
[1753371381624,0.0420711,118790.0,118760.0,0.4320945]
[1753371381822,1.1223098,118780.0,118770.0,0.36608]
[1753371382022,1.62866999,118780.0,118770.0,0.5343803]
[1753371382221,1.62866999,118780.0,118760.0,0.4017218]
[1753371382222,0.1683003,118770.0,118760.0,0.4017218]
[1753371382427,0.90066049,118770.0,118760.0,0.2994218]
[1753371382624,0.90066049,118770.0,118760.0,0.2573441]
[1753371382931,0.90066049,118770.0,118760.0,0.2152673]
[1753371383130,1.4114203,118770.0,118760.0,0.2152673]
[1753371383328,0.98481569,118770.0,118760.0,0.1683145]
[1753371383526,0.1683145,118760.0,118750.0,0.31853061]
[1753371383731,0.82804469,118760.0,118750.0,0.31853061]
[1753371383933,1.32988772,118760.0,118750.0,0.01908611]
[1753371384230,1.4500048,118760.0,118750.0,0.01908611]
[1753371384432,0.1683429,118740.0,118730.0,0.32399311]
[1753371384633,1.46465309,118740.0,118730.0,0.32399311]
[1753371385330,1.46465309,118740.0,118730.0,0.15564681]
[1753371386031,1.46465309,118740.0,118730.0,0.32400381]
[1753371386441,1.46465309,118740.0,118730.0,0.15564681]
[1753371386736,2.85226364,118740.0,118730.0,0.11068681]
[1753371387235,2.20478364,118740.0,118730.0,0.11068681]
[1753371387435,2.85198364,118740.0,118730.0,0.11068681]
[1753371387636,2.85198364,118740.0,118730.0,0.27904381]
[1753371387832,2.85198364,118740.0,118730.0,0.32600381]
[1753371388037,2.85198364,118740.0,118730.0,0.15764681]
[1753371388233,2.85198364,118740.0,118730.0,0.11068681]
[1753371388434,2.85198364,118740.0,118730.0,0.28104381]
[1753371388841,2.85198364,118740.0,118730.0,0.32800381]
[1753371389233,2.6071229,118740.0,118730.0,1.06532703]
[1753371389540,2.43798,118740.0,118730.0,1.06532703]
[1753371389732,1.62136,118740.0,118730.0,1.06532703]
[1753371389937,2.2672,118740.0,118730.0,0.92038703]
[1753371390540,2.4355429,118740.0,118730.0,0.92038703]
[1753371390740,2.6380129,118740.0,118730.0,0.43030381]
[1753371390941,0.7308129,118740.0,118730.0,0.43030381]
[1753371391242,1.3764529,118740.0,118730.0,0.84850703]
[1753371391633,1.51281309,118740.0,118730.0,0.84850703]
[1753371391834,1.51281309,118740.0,118730.0,0.43030381]
[1753371392144,1.51281309,118740.0,118730.0,0.32800381]
[1753371393043,1.51281309,118740.0,118730.0,0.74620703]
[1753371393342,1.51281309,118740.0,118730.0,0.32800381]
[1753371393543,1.51281309,118740.0,118730.0,0.43030381]
[1753371393844,1.17546,118740.0,118730.0,0.92038703]
[1753371394243,0.6991229,118740.0,118730.0,0.92038703]
[1753371394541,1.17462,118740.0,118730.0,0.92038703]
[1753371394836,1.17446,118740.0,118730.0,0.92038703]
[1753371395042,1.1743,118740.0,118730.0,0.92038703]
[1753371395242,0.53078,118740.0,118730.0,0.92038703]
[1753371395744,1.600699,118760.0,118750.0,0.1683287]
[1753371395935,0.33,118760.0,118750.0,0.8264902]
[1753371396135,0.09815,118810.0,118790.0,0.042068]
[1753371396340,0.19077922,118810.0,118800.0,0.58646102]
[1753371396645,0.01999922,118810.0,118800.0,1.03304424]
[1753371396839,0.01999922,118810.0,118800.0,0.78902102]
[1753371397038,1.23959292,118810.0,118800.0,0.78902102]
[1753371397347,1.00822292,118810.0,118800.0,0.76064102]
[1753371397544,1.3382237,118810.0,118800.0,0.76064102]
[1753371397935,1.3342237,118810.0,118800.0,0.76064102]
[1753371398146,1.51948389,118810.0,118800.0,0.2705578]
[1753371398641,1.4672503,118810.0,118790.0,0.61628502]
[1753371398944,1.66565111,118810.0,118800.0,0.3424378]
[1753371399139,1.66565111,118810.0,118800.0,0.38152977]
[1753371399336,1.44297433,118810.0,118800.0,0.14139197]
[1753371399541,0.4826867,118790.0,118780.0,0.1682737]
[1753371399838,0.3985462,118780.0,118770.0,0.29260605]
[1753371400036,0.85490639,118780.0,118770.0,0.29260605]
[1753371400437,1.49678639,118780.0,118770.0,0.29260605]
[1753371400633,0.04749,118780.0,118770.0,0.81818104]
[1753371400839,0.2157762,118780.0,118770.0,0.84656104]
[1753371401039,0.68945,118780.0,118770.0,0.84656104]
[1753371401348,0.2578316,118790.0,118780.0,0.3702762]
[1753371401548,1.38603179,118790.0,118780.0,0.78847942]
[1753371401845,1.56880179,118790.0,118780.0,0.76009942]
[1753371402038,1.56880179,118790.0,118780.0,0.17361]
[1753371402247,0.3985462,118780.0,118770.0,0.81817784]
[1753371402440,0.85490639,118780.0,118770.0,0.16382442]
[1753371402844,0.7185462,118780.0,118770.0,0.16382442]
[1753371403040,0.85490639,118780.0,118770.0,0.16382442]
[1753371403241,0.85490639,118780.0,118770.0,0.33212472]
[1753371403544,0.85690639,118780.0,118770.0,0.33212472]
[1753371403842,0.53690639,118780.0,118770.0,0.81818794]
[1753371404046,0.31226,118780.0,118770.0,0.81818794]
[1753371404347,0.69081,118780.0,118770.0,0.84656794]
[1753371404738,0.8590962,118780.0,118770.0,0.84656794]
[1753371405245,0.71173693,118780.0,118770.0,0.84656794]
[1753371405449,1.06279313,118780.0,118770.0,0.39998472]
[1753371405648,1.44279313,118780.0,118770.0,0.81818794]
[1753371406848,1.57915332,118780.0,118770.0,0.81818794]
[1753371407046,1.57915332,118780.0,118770.0,0.39998472]
[1753371407563,1.44279313,118780.0,118770.0,0.22637472]
[1753371407847,1.70498764,118780.0,118770.0,0.20781207]
[1753371408147,1.70498764,118780.0,118760.0,0.2319814]
[1753371408148,0.3985603,118770.0,118760.0,0.2103782]
[1753371408348,0.91484742,118770.0,118760.0,0.2103782]
[1753371408843,1.24906693,118770.0,118760.0,0.80219142]
[1753371409049,1.41736723,118770.0,118760.0,0.80219142]
[1753371409752,1.41836723,118770.0,118760.0,0.80219142]
[1753371409951,1.55472742,118770.0,118760.0,0.80219142]
[1753371410453,1.55472742,118770.0,118760.0,0.84036986]
[1753371410649,1.19472742,118770.0,118760.0,0.84036986]
[1753371410849,1.51572742,118770.0,118760.0,0.84036986]
[1753371411352,1.51672742,118770.0,118760.0,0.84036986]
[1753371411545,1.02842712,118770.0,118760.0,0.84036986]
[1753371411752,0.55784742,118770.0,118760.0,0.84036986]
[1753371411952,1.54568742,118770.0,118760.0,0.84036986]
[1753371412154,1.54512742,118770.0,118760.0,0.84036986]
[1753371412949,1.54512742,118770.0,118760.0,0.42216664]
[1753371413144,1.54512742,118770.0,118760.0,0.20648024]
[1753371413354,1.96333064,118770.0,118760.0,0.03817844]
[1753371413656,0.1683145,118760.0,118750.0,0.22921568]
[1753371413852,0.93486162,118760.0,118750.0,0.22921568]
[1753371414047,0.91493469,118760.0,118750.0,0.01881828]
[1753371414249,0.23026,118750.0,118730.0,0.28141101]
[1753371414455,1.0355228,118740.0,118730.0,0.44555831]
[1753371414658,1.50188299,118740.0,118730.0,0.44555831]